fUSD/lending_fUSD_20250812
["ID","MTS","AMOUNT","RATE_DAILY","PERIOD"]
[378754381,1755003073397,-400.0,0.00041643,30]
[378754382,1755003073407,-400.0,0.00041643,30]
[378754383,1755003073416,-435.17,0.00041643,30]
[378754384,1755003073426,-400.0,0.00041643,30]
[378754385,1755003073437,-400.0,0.00041643,30]
[378754386,1755003073447,-400.0,0.00041643,30]
[378754387,1755003073456,-400.0,0.00041643,30]
[378754388,1755003073468,-400.0,0.00041643,30]
[378754389,1755003073477,-400.0,0.00041643,30]
[378754390,1755003073486,-400.0,0.00041643,30]
[378754391,1755003073496,-400.0,0.00041643,30]
[378754392,1755003073506,-747.94,0.00041643,30]
[378754393,1755003073515,-400.0,0.00041643,30]
[378754394,1755003073525,-214.03758661,0.00041643,30]
[378754395,1755003073535,-400.0,0.00041643,30]
[378754396,1755003073544,-400.0,0.00041643,30]
[378754397,1755003073554,-400.0,0.00041643,30]
[378754398,1755003073563,-400.0,0.00041643,30]
[378754399,1755003073573,-508.17,0.00041643,30]
[378754400,1755003073582,-400.0,0.00041643,30]
[378754401,1755003073592,-400.0,0.00041643,30]
[378754402,1755003073601,-400.0,0.00041643,30]
[378754403,1755003073612,-400.0,0.00041643,30]
[378754404,1755003073623,-493.89,0.00041643,30]
[378754405,1755003073632,-400.0,0.00041643,30]
[378754406,1755003073642,-496.53119898,0.00041643,30]
[378754407,1755003073651,-400.0,0.00041643,30]
[378754408,1755003073661,-400.0,0.00041643,30]
[378754409,1755003073671,-400.0,0.00041643,30]
[378754410,1755003073680,-569.03,0.00041643,30]
[378754411,1755003073689,-400.0,0.00041643,30]
[378754412,1755003073700,-400.0,0.00041643,30]
[378754413,1755003073711,-1304.68,0.00041643,30]
[378754414,1755003073720,-400.0,0.00041643,30]
[378754415,1755003073729,-400.0,0.00041643,30]
[378754416,1755003073738,-472.71,0.00041643,30]
[378754417,1755003073747,-400.0,0.00041643,30]
[378754418,1755003073756,-400.0,0.00041643,30]
[378754419,1755003073765,-485.21,0.00041643,30]
[378754420,1755003073777,-412.43639085,0.00041643,30]
[378754421,1755003073787,-400.0,0.00041643,30]
[378754422,1755003073796,-400.0,0.00041643,30]
[378754423,1755003073805,-1427.73,0.00041643,30]
[378754424,1755003073815,-400.0,0.00041643,30]
[378754425,1755003073825,-400.0,0.00041643,30]
[378754426,1755003073835,-400.0,0.00041643,30]
[378754427,1755003073845,-400.0,0.00041643,30]
[378754428,1755003073854,-400.0,0.00041643,30]
[378754429,1755003073863,-2116.9,0.00041643,30]
[378754430,1755003073872,-400.0,0.00041643,30]
[378754431,1755003073882,-400.0,0.00041643,30]
[378754432,1755003073891,-400.0,0.00041643,30]
[378754433,1755003073900,-400.0,0.00041643,30]
[378754434,1755003073910,-400.0,0.00041643,30]
[378754435,1755003074029,-400.0,0.00041643,30]
[378754436,1755003074039,-668.75,0.00041643,30]
[378754437,1755003074049,-400.0,0.00041643,30]
[378754438,1755003074059,-400.0,0.00041643,30]
[378754439,1755003074068,-599.71,0.00041643,30]
[378754440,1755003074078,-1550.59,0.00041643,30]
[378754441,1755003074087,-400.0,0.00041643,30]
[378754442,1755003074097,-400.0,0.00041643,30]
[378754443,1755003074106,-400.0,0.00041643,30]
[378754444,1755003074115,-400.0,0.00041643,30]
[378754445,1755003074125,-400.0,0.00041643,30]
[378754446,1755003074134,-400.0,0.00041643,30]
[378754447,1755003074143,-400.0,0.00041643,30]
[378754448,1755003074152,-2263.04,0.00041643,30]
[378754449,1755003074161,-400.0,0.00041643,30]
[378754450,1755003074171,-801.81,0.00041643,30]
[378754451,1755003074181,-400.0,0.00041643,30]
[378754452,1755003074190,-517.14,0.00041643,30]
[378754453,1755003074199,-400.0,0.00041643,30]
[378754454,1755003074208,-1000.0,0.00041643,2]
[378754455,1755003074216,-416.76,0.00041643,30]
[378754456,1755003074225,-606.34,0.00041643,7]
[378754457,1755003074234,-463.53,0.00041643,30]
[378754458,1755003074244,-1058.21,0.00041643,30]
[378754459,1755003074253,-400.0,0.00041643,30]
[378754460,1755003074263,-400.0,0.00041643,30]
[378754461,1755003074275,-400.0,0.00041643,30]
[378754462,1755003074284,-400.0,0.00041643,30]
[378754463,1755003074293,-400.0,0.00041643,30]
[378754464,1755003074303,-400.0,0.00041643,30]
[378754465,1755003074312,-400.0,0.00041643,30]
[378754466,1755003074322,-400.0,0.00041643,30]
[378754467,1755003074331,-400.0,0.00041643,30]
[378754468,1755003074340,-400.0,0.00041643,30]
[378754469,1755003074349,-661.34,0.00041643,30]
[378754470,1755003074358,-400.0,0.00041643,30]
[378754471,1755003074367,-453.89,0.00041643,30]
[378754472,1755003074376,-3468.76,0.00041643,30]
[378754473,1755003074386,-400.0,0.00041643,30]
[378754474,1755003074395,-747.81,0.00041643,30]
[378754475,1755003074404,-413.27,0.00041643,30]
[378754476,1755003074414,-567.5,0.00041643,30]
[378754477,1755003074423,-689.53,0.00041643,30]
[378754478,1755003074432,-400.0,0.00041643,30]
[378754479,1755003074441,-400.0,0.00041643,30]
[378754480,1755003074450,-400.0,0.00041643,30]
[378754481,1755003074459,-414.54,0.00041643,30]
[378754482,1755003074469,-3359.66,0.00041643,30]
[378754483,1755003074478,-400.0,0.00041643,30]
[378754484,1755003074487,-400.0,0.00041643,30]
[378754485,1755003074496,-449.21,0.00041643,30]
[378754486,1755003074506,-400.0,0.00041643,30]
[378754487,1755003074515,-704.22,0.00041643,30]
[378754488,1755003074526,-400.0,0.00041643,30]
[378754489,1755003074535,-405.05315924,0.00041643,30]
[378754490,1755003074544,-400.0,0.00041643,30]
[378754491,1755003074553,-400.0,0.00041643,30]
[378754492,1755003074562,-400.0,0.00041643,30]
[378754493,1755003074572,-400.0,0.00041643,30]
[378754494,1755003074582,-400.0,0.00041643,30]
[378754495,1755003074591,-400.0,0.00041643,30]
[378754496,1755003074600,-400.0,0.00041643,30]
[378754497,1755003074612,-632.29,0.00041643,30]
[378754498,1755003074623,-466.87,0.00041643,30]
[378754499,1755003074632,-403.93943955,0.00041643,30]
[378754500,1755003074642,-400.0,0.00041643,30]
[378754501,1755003074651,-400.0,0.00041643,30]
[378754502,1755003074662,-400.0,0.00041643,30]
[378754503,1755003074672,-400.0,0.00041643,30]
[378754504,1755003074681,-967.192467,0.00041643,30]
[378754505,1755003074693,-494.37,0.00041643,30]
[378754506,1755003074703,-967.192467,0.00041643,30]
[378754507,1755003074712,-400.0,0.00041643,30]
[378754508,1755003074722,-400.0,0.00041643,30]
[378754509,1755003074731,-400.0,0.00041643,30]
[378754510,1755003074741,-601.38,0.00041643,30]
[378754511,1755003074750,-400.0,0.00041643,30]
[378754512,1755003074759,-400.0,0.00041643,30]
[378754513,1755003074771,-400.0,0.00041643,30]
[378754514,1755003074781,-710.1,0.00041643,30]
[378754515,1755003074790,-967.192467,0.00041643,30]
[378754516,1755003074800,-967.192467,0.00041643,30]
[378754517,1755003074809,-400.0,0.00041643,30]
[378754518,1755003074818,-356.56733941,0.00041643,30]
[378754519,1755003074827,-400.0,0.00041643,30]
[378754520,1755003074837,-510.24401433,0.00041643,30]
[378754521,1755003074846,-400.0,0.00041643,30]
[378754522,1755003074856,-400.0,0.00041643,30]
[378754523,1755003074865,-400.0,0.00041643,30]
[378754524,1755003074874,-400.0,0.00041643,30]
[378754525,1755003074884,-400.0,0.00041643,30]
[378754526,1755003074893,-400.0,0.00041643,30]
[378754527,1755003074902,-400.0,0.00041643,30]
[378754528,1755003074911,-400.0,0.00041643,30]
[378754529,1755003074921,-929.42,0.00041643,30]
[378754530,1755003074931,-400.0,0.00041643,30]
[378754531,1755003074940,-172.20465415,0.00041643,30]
[378754532,1755003074949,-400.0,0.00041643,30]
[378754533,1755003074959,-654.03,0.00041643,30]
[378754534,1755003074968,-400.0,0.00041643,30]
[378754535,1755003074978,-400.0,0.00041643,30]
[378754536,1755003074988,-400.0,0.00041643,30]
[378754537,1755003074998,-400.0,0.00041643,30]
[378754538,1755003075008,-683.7,0.00041643,30]
[378754539,1755003075020,-727.2,0.00041643,30]
[378754540,1755003075029,-1130.55,0.00041643,30]
[378754541,1755003075039,-400.0,0.00041643,30]
[378754542,1755003075048,-400.0,0.00041643,30]
[378754543,1755003075057,-400.0,0.00041643,30]
[378754544,1755003075066,-400.0,0.00041643,30]
[378754545,1755003075076,-400.0,0.00041643,30]
[378754546,1755003075085,-400.0,0.00041643,30]
[378754547,1755003075094,-400.0,0.00041643,30]
[378754548,1755003075104,-400.0,0.00041643,30]
[378754549,1755003075113,-693.76,0.00041643,30]
[378754550,1755003075122,-400.0,0.00041643,30]
[378754551,1755003075131,-2521.4,0.00041643,30]
[378754552,1755003075141,-765.99,0.00041643,30]
[378754553,1755003075150,-400.0,0.00041643,30]
[378754554,1755003075159,-400.0,0.00041643,30]
[378754555,1755003075168,-408.27,0.00041643,30]
[378754556,1755003075177,-400.0,0.00041643,30]
[378754557,1755003075187,-379.58439947,0.00041643,30]
[378754558,1755003075196,-674.11,0.00041643,30]
[378754559,1755003075205,-400.0,0.00041643,30]
[378754560,1755003075214,-463.15,0.00041643,30]
[378754561,1755003075224,-400.0,0.00041643,30]
[378754562,1755003075233,-515.85,0.00041643,30]
[378754563,1755003075242,-400.0,0.00041643,30]
[378754564,1755003075251,-400.0,0.00041643,30]
[378754565,1755003075260,-400.0,0.00041643,14]
[378754566,1755003075271,-400.0,0.00041643,30]
[378754567,1755003075280,-400.0,0.00041643,30]
[378754568,1755003075290,-400.0,0.00041643,30]
[378754569,1755003075299,-224.87,0.00041643,30]
[378754570,1755003075308,-400.0,0.00041643,30]
[378754571,1755003075318,-726.38,0.00041643,30]
[378754572,1755003075327,-400.0,0.00041643,30]
[378754573,1755003075335,-400.0,0.00041643,30]
[378754574,1755003075345,-1713.36,0.00041643,30]
[378754575,1755003075355,-400.0,0.00041643,30]
[378754576,1755003075364,-564.91,0.00041643,30]
[378754577,1755003075373,-1000.0,0.00041643,30]
[378754578,1755003075382,-461.85,0.00041643,30]
[378754579,1755003075392,-622.29,0.00041643,30]
[378754580,1755003075401,-576.83,0.00041643,30]
[378754581,1755003075410,-558.07,0.00041643,30]
[378754582,1755003075419,-400.0,0.00041643,30]
[378754583,1755003075428,-151.0,0.00041643,30]
[378754584,1755003075438,-400.0,0.00041643,30]
[378754585,1755003075447,-151.0,0.00041643,30]
[378754586,1755003075456,-400.0,0.00041643,30]
[378754587,1755003075464,-400.0,0.00041643,30]
[378754588,1755003075473,-400.0,0.00041643,30]
[378754589,1755003075483,-400.0,0.00041643,30]
[378754590,1755003075492,-400.0,0.00041643,30]
[378754591,1755003075501,-756.4,0.00041643,30]
[378754592,1755003075511,-400.0,0.00041643,30]
[378754593,1755003075523,-400.0,0.00041643,30]
[378754594,1755003075532,-471.31,0.00041643,30]
[378754595,1755003075542,-400.0,0.00041643,30]
[378754596,1755003075551,-400.0,0.00041643,30]
[378754597,1755003075560,-462.1,0.00041643,30]
[378754598,1755003075569,-400.0,0.00041643,30]
[378754599,1755003075579,-400.0,0.00041643,30]
[378754600,1755003075589,-400.0,0.00041643,30]
[378754601,1755003075598,-400.0,0.00041643,30]
[378754602,1755003075607,-400.0,0.00041643,30]
[378754603,1755003075617,-555.74,0.00041643,30]
[378754604,1755003075630,-355.93,0.00041643,30]
[378754605,1755003075639,-400.0,0.00041643,30]
[378754606,1755003075649,-400.0,0.00041643,30]
[378754607,1755003075658,-400.0,0.00041643,30]
[378754608,1755003075668,-740.93,0.00041643,30]
[378754609,1755003075678,-400.0,0.00041643,30]
[378754610,1755003075688,-400.0,0.00041643,30]
[378754611,1755003075698,-463.04,0.00041643,30]
[378754612,1755003075707,-400.0,0.00041643,30]
[378754613,1755003075717,-440.15,0.00041643,30]
[378754614,1755003075727,-400.0,0.00041643,30]
[378754615,1755003075736,-400.0,0.00041643,30]
[378754616,1755003075746,-400.0,0.00041643,30]
[378754617,1755003075755,-400.0,0.00041643,30]
[378754618,1755003075764,-413.22,0.00041643,30]
[378754619,1755003075778,-400.0,0.00041643,30]
[378754620,1755003075787,-400.0,0.00041643,30]
[378754621,1755003075798,-500.0,0.00041644,5]
[378754622,1755003075808,-3399.17565231,0.00041677,15]
[378754623,1755003075817,-167.46,0.000417,14]
[378754624,1755003075827,-600.0,0.00041703,14]
[378754625,1755003075837,-592.86,0.00041703,14]
[378754626,1755003075846,-600.0,0.00041775,14]
[378754627,1755003075965,-592.86,0.00041775,14]
[378754628,1755003075975,-150.0,0.000418,2]
[378754629,1755003075985,-1308.08765911,0.00041817,2]
[378754630,1755003075995,-600.0,0.00041846,14]
[378754631,1755003076004,-592.86,0.00041846,14]
[378754632,1755003076014,-150.0,0.00041869,5]
[378754633,1755003076028,-150.0,0.00041869,5]
[378754634,1755003076038,-154.2516406,0.00041887,15]
[378754635,1755003076047,-151.0,0.000419,120]
[378754636,1755003076057,-154.0,0.000419,120]
[378754637,1755003076066,-500.0,0.00041916,30]
[378754638,1755003076076,-1071.3,0.00041916,30]
[378754639,1755003076085,-500.0,0.00041916,30]
[378754640,1755003076095,-500.0,0.00041916,30]
[378754641,1755003076105,-500.0,0.00041916,2]
[378754642,1755003076114,-500.0,0.00041916,30]
[378754643,1755003076124,-154.75245201,0.00041916,2]
[378754644,1755003076133,-737.87,0.00041916,30]
[378754645,1755003076142,-500.0,0.00041916,30]
[378754646,1755003076152,-682.48,0.00041916,30]
[378754647,1755003076161,-682.48,0.00041916,30]
[378754648,1755003076170,-500.0,0.00041916,30]
[378754649,1755003076180,-597.51,0.00041916,30]
[378754650,1755003076189,-597.51,0.00041916,30]
[378754651,1755003076198,-1807.39,0.00041916,30]
[378754652,1755003076207,-1894.03,0.00041916,30]
[378754653,1755003076216,-400.0,0.00041917,30]
[378754654,1755003076226,-405.09034158,0.00041917,30]
[378754655,1755003076235,-400.0,0.00041917,30]
[378754656,1755003076245,-400.0,0.00041917,30]
[378754657,1755003076254,-406.34534592,0.00041917,30]
[378754658,1755003076264,-400.0,0.00041917,30]
[378754659,1755003076276,-400.0,0.00041917,30]
[378754660,1755003076285,-400.0,0.00041917,30]
[378754661,1755003076295,-177.13,0.00041917,30]
[378754662,1755003076304,-400.0,0.00041917,30]
[378754663,1755003076313,-400.0,0.00041917,30]
[378754664,1755003076322,-400.0,0.00041917,30]
[378754665,1755003076331,-646.53,0.00041917,30]
[378754666,1755003076341,-400.0,0.00041917,30]
[378754667,1755003076350,-344.00640738,0.00041917,30]
[378754668,1755003076359,-400.0,0.00041917,30]
[378754669,1755003076369,-505.05881762,0.00041917,30]
[378754670,1755003076378,-400.0,0.00041917,30]
[378754671,1755003076388,-536.43708345,0.00041917,30]
[378754672,1755003076398,-400.0,0.00041917,30]
[378754673,1755003076407,-440.98,0.00041917,30]
[378754674,1755003076417,-400.0,0.00041917,30]
[378754675,1755003076426,-400.0,0.00041917,30]
[378754676,1755003076436,-206.42,0.00041917,30]
[378754677,1755003076445,-400.0,0.00041917,30]
[378754678,1755003076455,-400.0,0.00041917,30]
[378754679,1755003076464,-517.08,0.00041917,30]
[378754680,1755003076473,-400.0,0.00041917,30]
[378754681,1755003076482,-544.151326,0.00041917,30]
[378754682,1755003076491,-400.0,0.00041917,30]
[378754683,1755003076501,-544.151326,0.00041917,30]
[378754684,1755003076510,-400.0,0.00041917,30]
[378754685,1755003076522,-400.0,0.00041917,30]
[378754686,1755003076531,-400.0,0.00041917,30]
[378754687,1755003076540,-400.0,0.00041917,30]
[378754688,1755003076550,-394.7,0.00041917,30]
[378754689,1755003076559,-400.0,0.00041917,30]
[378754690,1755003076568,-400.0,0.00041917,30]
[378754691,1755003076578,-400.0,0.00041917,30]
[378754692,1755003076587,-400.0,0.00041917,30]
[378754693,1755003076597,-400.0,0.00041917,30]
[378754694,1755003076607,-400.0,0.00041917,30]
[378754695,1755003076617,-429.7180514,0.00041917,30]
[378754696,1755003076631,-400.0,0.00041917,30]
[378754697,1755003076642,-400.0,0.00041917,30]
[378754698,1755003076651,-400.0,0.00041917,30]
[378754699,1755003076661,-252.44,0.00041917,30]
[378754700,1755003076671,-451.8,0.00041917,30]
[378754701,1755003076680,-400.0,0.00041917,30]
[378754702,1755003076689,-400.0,0.00041917,30]
[378754703,1755003076699,-400.0,0.00041917,30]
[378754704,1755003076709,-400.0,0.00041917,30]
[378754705,1755003076719,-312.08853036,0.00041917,30]
[378754706,1755003076728,-400.0,0.00041917,30]
[378754707,1755003076737,-400.0,0.00041917,30]
[378754708,1755003076746,-552.24,0.00041917,30]
[378754709,1755003076755,-457.95190001,0.00041917,30]
[378754710,1755003076764,-400.0,0.00041917,30]
[378754711,1755003076777,-400.0,0.00041917,30]
[378754712,1755003076786,-400.0,0.00041917,30]
[378754713,1755003076795,-411.53,0.00041917,30]
[378754714,1755003076805,-400.0,0.00041917,30]
[378754715,1755003076814,-400.0,0.00041917,30]
[378754716,1755003076824,-400.0,0.00041917,30]
[378754717,1755003076833,-400.0,0.00041917,30]
[378754718,1755003076843,-400.0,0.00041917,30]
[378754719,1755003076852,-400.0,0.00041917,30]
[378754720,1755003076862,-687.38,0.00041917,30]
[378754721,1755003076871,-400.0,0.00041917,30]
[378754722,1755003076880,-400.0,0.00041917,30]
[378754723,1755003076889,-400.0,0.00041917,30]
[378754724,1755003076899,-416.44834876,0.00041917,30]
[378754725,1755003076908,-400.0,0.00041917,30]
[378754726,1755003076918,-400.0,0.00041917,30]
[378754727,1755003076927,-400.0,0.00041917,30]
[378754728,1755003076936,-400.0,0.00041917,30]
[378754729,1755003076945,-648.2,0.00041917,30]
[378754730,1755003076954,-400.0,0.00041917,30]
[378754731,1755003076963,-400.0,0.00041917,30]
[378754732,1755003076972,-400.0,0.00041917,30]
[378754733,1755003076981,-400.0,0.00041917,30]
[378754734,1755003076991,-400.0,0.00041917,30]
[378754735,1755003077001,-400.0,0.00041917,30]
[378754736,1755003077011,-400.0,0.00041917,30]
[378754737,1755003077022,-400.0,0.00041917,30]
[378754738,1755003077031,-400.0,0.00041917,30]
[378754739,1755003077040,-400.0,0.00041917,30]
[378754740,1755003077049,-400.0,0.00041917,30]
[378754741,1755003077059,-400.0,0.00041917,30]
[378754742,1755003077067,-400.0,0.00041917,30]
[378754743,1755003077077,-400.0,0.00041917,30]
[378754744,1755003077086,-400.0,0.00041917,30]
[378754745,1755003077096,-424.7,0.00041917,30]
[378754746,1755003077105,-541.9,0.00041917,30]
[378754747,1755003077114,-420.71135727,0.00041917,30]
[378754748,1755003077123,-484.99887355,0.00041917,30]
[378754749,1755003077133,-268.653618,0.00041917,30]
[378754750,1755003077142,-400.0,0.00041917,30]
[378754751,1755003077151,-400.0,0.00041917,30]
[378754752,1755003077161,-565.63,0.00041917,30]
[378754753,1755003077170,-400.0,0.00041917,30]
[378754754,1755003077179,-400.0,0.00041917,30]
[378754755,1755003077189,-592.88,0.00041917,30]
[378754756,1755003077199,-400.0,0.00041917,30]
[378754757,1755003077209,-4791.08,0.00041917,30]
[378754758,1755003077219,-400.0,0.00041917,30]
[378754759,1755003077228,-400.0,0.00041917,30]
[378754760,1755003077237,-400.0,0.00041917,30]
[378754761,1755003077250,-400.0,0.00041917,30]
[378754762,1755003077259,-400.0,0.00041917,30]
[378754763,1755003077269,-400.0,0.00041917,30]
[378754764,1755003077279,-400.0,0.00041917,30]
[378754765,1755003077288,-475.4,0.00041917,30]
[378754766,1755003077297,-421.82,0.00041917,30]
[378754767,1755003077307,-400.0,0.00041917,30]
[378754768,1755003077316,-400.0,0.00041917,30]
[378754769,1755003077325,-416.21696385,0.00041917,30]
[378754770,1755003077334,-400.0,0.00041917,30]
[378754771,1755003077344,-157.703964,0.00041917,30]
[378754772,1755003077353,-275.36456,0.00041917,30]
[378754773,1755003077363,-400.0,0.00041917,30]
[378754774,1755003077372,-400.0,0.00041917,30]
[378754775,1755003077382,-400.0,0.00041917,30]
[378754776,1755003077391,-429.77597079,0.00041917,30]
[378754777,1755003077401,-432.57,0.00041917,30]
[378754778,1755003077410,-400.0,0.00041917,30]
[378754779,1755003077419,-419.5,0.00041917,30]
[378754780,1755003077429,-400.0,0.00041917,30]
[378754781,1755003077439,-400.0,0.00041917,30]
[378754782,1755003077449,-400.0,0.00041917,30]
[378754783,1755003077458,-400.0,0.00041917,30]
[378754784,1755003077467,-400.0,0.00041917,30]
[378754785,1755003077476,-400.0,0.00041917,30]
[378754786,1755003077485,-400.0,0.00041917,30]
[378754787,1755003077495,-400.0,0.00041917,30]
[378754788,1755003077504,-400.0,0.00041917,30]
[378754789,1755003077513,-400.0,0.00041917,30]
[378754790,1755003077525,-400.0,0.00041917,30]
[378754791,1755003077534,-400.0,0.00041917,30]
[378754792,1755003077543,-400.0,0.00041917,30]
[378754793,1755003077552,-400.0,0.00041917,30]
[378754794,1755003077561,-400.0,0.00041917,30]
[378754795,1755003077570,-400.0,0.00041917,30]
[378754796,1755003077580,-500.94,0.00041917,30]
[378754797,1755003077589,-400.0,0.00041917,30]
[378754798,1755003077599,-400.0,0.00041917,30]
[378754799,1755003077609,-649.81,0.00041917,30]
[378754800,1755003077619,-400.0,0.00041917,30]
[378754801,1755003077632,-400.0,0.00041917,30]
[378754802,1755003077641,-400.0,0.00041917,30]
[378754803,1755003077651,-400.0,0.00041917,30]
[378754804,1755003077758,-400.0,0.00041917,30]
[378754805,1755003077780,-400.0,0.00041917,30]
[378754806,1755003077790,-400.0,0.00041917,30]
[378754807,1755003077799,-400.0,0.00041917,30]
[378754808,1755003077809,-400.0,0.00041917,30]
[378754809,1755003077818,-656.69,0.00041917,30]
[378754810,1755003077828,-469.11,0.00041917,30]
[378754811,1755003077837,-426.91,0.00041917,30]
[378754812,1755003077847,-400.0,0.00041917,30]
[378754813,1755003077856,-400.0,0.00041917,30]
[378754814,1755003077864,-400.0,0.00041917,30]
[378754815,1755003077874,-400.0,0.00041917,30]
[378754816,1755003077883,-400.0,0.00041917,30]
[378754817,1755003077892,-400.0,0.00041917,30]
[378754818,1755003077901,-400.0,0.00041917,30]
[378754819,1755003077911,-400.0,0.00041917,30]
[378754820,1755003077920,-400.0,0.00041917,30]
[378754821,1755003077930,-426.42108848,0.00041917,30]
[378754822,1755003077939,-400.0,0.00041917,30]
[378754823,1755003077949,-300.0,0.00041917,30]
[378754824,1755003077958,-400.0,0.00041917,30]
[378754825,1755003077967,-400.0,0.00041917,30]
[378754826,1755003077976,-400.0,0.00041917,30]
[378754827,1755003077986,-407.69,0.00041917,30]
[378754828,1755003077995,-400.0,0.00041917,30]
[378754829,1755003078005,-400.0,0.00041917,30]
[378754830,1755003078014,-400.0,0.00041917,30]
[378754831,1755003078025,-643.28,0.00041917,30]
[378754832,1755003078035,-400.0,0.00041917,30]
[378754833,1755003078045,-400.0,0.00041917,30]
[378754834,1755003078054,-425.08,0.00041917,30]
[378754835,1755003078063,-400.0,0.00041917,30]
[378754836,1755003078073,-400.0,0.00041917,30]
[378754837,1755003078082,-400.0,0.00041917,30]
[378754838,1755003078092,-400.0,0.00041917,30]
[378754839,1755003078101,-400.0,0.00041917,30]
[378754840,1755003078111,-400.0,0.00041917,30]
[378754841,1755003078121,-400.0,0.00041917,30]
[378754842,1755003078130,-400.0,0.00041917,30]
[378754843,1755003078139,-400.0,0.00041917,30]
[378754844,1755003078148,-400.0,0.00041917,30]
[378754845,1755003078158,-400.0,0.00041917,30]
[378754846,1755003078167,-485.48,0.00041917,30]
[378754847,1755003078177,-400.0,0.00041917,30]
[378754848,1755003078187,-400.0,0.00041917,30]
[378754849,1755003078197,-400.0,0.00041917,30]
[378754850,1755003078207,-467.65,0.00041917,30]
[378754851,1755003078217,-400.0,0.00041917,30]
[378754852,1755003078227,-400.0,0.00041917,30]
[378754853,1755003078237,-620.11,0.00041917,30]
[378754854,1755003078247,-422.97,0.00041917,30]
[378754855,1755003078257,-400.0,0.00041917,30]
[378754856,1755003078266,-400.0,0.00041917,30]
[378754857,1755003078282,-407.76,0.00041917,30]
[378754858,1755003078291,-400.0,0.00041917,30]
[378754859,1755003078302,-400.0,0.00041917,30]
[378754860,1755003078312,-400.0,0.00041917,30]
[378754861,1755003078322,-400.0,0.00041917,30]
[378754862,1755003078333,-400.0,0.00041917,30]
[378754863,1755003078342,-400.0,0.00041917,30]
[378754864,1755003078352,-400.0,0.00041917,30]
[378754865,1755003078361,-512.07472159,0.00041917,30]
[378754866,1755003078371,-400.0,0.00041917,30]
[378754867,1755003078381,-400.0,0.00041917,30]
[378754868,1755003078391,-400.0,0.00041917,30]
[378754869,1755003078401,-400.0,0.00041917,30]
[378754870,1755003078410,-400.0,0.00041917,30]
[378754871,1755003078420,-473.91,0.00041917,30]
[378754872,1755003078430,-400.0,0.00041917,30]
[378754873,1755003078440,-429.54,0.00041917,30]
[378754874,1755003078449,-400.0,0.00041917,30]
[378754875,1755003078459,-2095.41,0.00041917,30]
[378754876,1755003078468,-400.0,0.00041917,30]
[378754877,1755003078477,-400.0,0.00041917,30]
[378754878,1755003078486,-400.0,0.00041917,30]
[378754879,1755003078497,-400.0,0.00041917,30]
[378754880,1755003078506,-400.0,0.00041917,30]